[Event "13th All African Mixed Team Rapid-ch 202"]
[Site "Accra"]
[Date "2024.03.09"]
[Round "3.15"]
[White "Paiva, Donaldo"]
[Black "Cogan, Nicolas"]
[Result "1-0"]
[ECO "E11"]
[WhiteElo "2172"]
[BlackElo "2070"]
[Annotator "RC"]
[PlyCount "117"]
[EventDate "2024.03.07"]
[EventType "rapid"]
[EventCountry "GHA"]
[SourceTitle "playchess.com"]
[Source "ChessBase"]
[SourceQuality "1"]
[TimeControl "900+10"]

1. d4 {[%emt 0:00:06]} Nf6 {[%emt 0:00:07]} 2. c4 {[%emt 0:00:01]} e6 {[%emt 0:00:11]} 3. Nf3 {[%emt 0:00:01]} Bb4+ {[%emt 0:01:19]} 4. Bd2 {[%emt 0:00:14]} Qe7 {[%emt 0:00:02]} 5. Qc2 {[%emt 0:00:06]} d5 {[%emt 0:01:19]} 6. Nc3 {[%emt 0:00:30]} O-O {[%emt 0:01:36]} 7. e3 {[%emt 0:00:02]} a6 {[%emt 0:01:13]} 8. a3 {[%emt 0:00:50]} Bxc3 {[%emt 0:00:12]} 9. Bxc3 {[%emt 0:00:02]} Re8 {[%emt 0:01:22]} 10. Rc1 {[%emt 0:00:30]} dxc4 {[%emt 0:02:52]} 11. Bxc4 {[%emt 0:00:02]} Nbd7 {[%emt 0:01:27]} 12. O-O {[%emt 0:00:05]} b6 {[%emt 0:00:24]} 13. Be2 {[%emt 0:01:28]} c5 {[%emt 0:00:38]} 14. dxc5 {[%emt 0:00:26]} Nxc5 {[%emt 0:01:43]} 15. Bb4 {[%emt 0:00:17]} Nfd7 {[%emt 0:00:02]} 16. a4 {[%emt 0:00:23]} a5 {[%emt 0:00:10]} 17. Ba3 {[%emt 0:00:02]} Bb7 {[%emt 0:00:14]} 18. Bb5 {[%emt 0:00:59]} Qf6 {[%emt 0:00:56]} 19. Qe2 {[%emt 0:01:01]} Rec8 {[%emt 0:01:02]} 20. Nd2 {[%emt 0:00:56]} Qg6 {[%emt 0:00:34]} 21. f3 {[%emt 0:00:09]} Bc6 {[%emt 0:00:16]} 22. Nc4 {[%emt 0:00:51]} Bxb5 {[%emt 0:00:21]} 23. axb5 {[%emt 0:00:02]} e5 {[%emt 0:00:35]} 24. Rfd1 {[%emt 0:00:16]} Re8 {[%emt 0:00:18]} 25. Rd6 {[%emt 0:00:45]} Re6 {[%emt 0:00:00]} 26. Rcd1 {[%emt 0:00:02]} Rae8 {[%emt 0:00:26]} 27. Rxd7 {[%emt 0:00:13]} Nxd7 {[%emt 0:00:02]} 28. Rxd7 {[%emt 0:00:03]} Qb1+ {[%emt 0:00:03]} 29. Rd1 {[%emt 0:00:04]} Qa2 {[%emt 0:00:06]} 30. h3 {[%emt 0:00:26]} Qb3 {[%emt 0:00:03]} 31. Nd6 {[%emt 0:00:57]} Rd8 {[%emt 0:00:01]} 32. Rd3 {[%emt 0:00:02]} Qa2 {[%emt 0:00:43]} 33. Qd1 {[%emt 0:00:12]} h6 {[%emt 0:00:11]} 34. e4 {[%emt 0:00:19]} Rd7 {[%emt 0:00:06]} 35. Nf5 {[%emt 0:00:09]} Rxd3 {[%emt 0:00:05]} 36. Qxd3 {[%emt 0:00:02]} Qa1+ {[%emt 0:00:14]} 37. Kh2 {[%emt 0:00:02]} Qc1 {[%emt 0:00:07]} 38. Qe3 {[%emt 0:00:34]} Qc7 {[%emt 0:00:13]} 39. Qc3 {[%emt 0:00:17]} Qd8 {[%emt 0:00:14]} 40. Ne3 {[%emt 0:01:00]} Qg5 {[%emt 0:00:12]} 41. Nd5 {[%emt 0:00:07]} Kh7 {[%emt 0:00:02]} 42. Qe3 {[%emt 0:00:06]} Qd8 {[%emt 0:00:02]} 43. b3 {[%emt 0:00:25]} Rg6 {[%emt 0:00:09]} 44. Bb2 {[%emt 0:00:04]} Re6 {[%emt 0:00:14]} 45. Bc1 {[%emt 0:00:18]} Rg6 {[%emt 0:00:02]} 46. Qf2 {[%emt 0:00:09]} Qd7 {[%emt 0:00:28]} 47. Qe2 {[%emt 0:00:07]} Qd6 {[%emt 0:00:09]} 48. Be3 {[%emt 0:00:06]} Qa3 {[%emt 0:00:12]} 49. Qc2 {[%emt 0:00:12]} h5 {[%emt 0:00:10]} 50. Bxb6 {[%emt 0:00:10]} Qa1 {[%emt 0:00:09]} 51. Be3 {[%emt 0:00:16]} Qf1 {[%emt 0:00:12]} 52. b6 {[%emt 0:00:08]} Qa6 {[%emt 0:00:04]} 53. Qc4 {[%emt 0:00:11]} Qa8 {[%emt 0:00:05]} 54. Qc7 {[%emt 0:00:08]} Qa6 {[%emt 0:00:18]} 55. Qxf7 {[%emt 0:00:51]} Qf1 {[%emt 0:00:13]} 56. Qxg6+ {[%emt 0:00:18]} Kxg6 {[%emt 0:00:01]} 57. b7 {[%emt 0:00:04]} Qb5 {[%emt 0:00:19]} 58. Bb6 {[%emt 0:00:02]} Qe8 {[%emt 0:00:11]} 59. Bc7 {[%emt 0:00:00]} 1-0

[Event "13th All African Mixed Team Rapid-ch 202"]
[Site "Accra"]
[Date "2024.03.09"]
[Round "3.16"]
[White "Yavo Tchetche, Marie"]
[Black "Vilhete, Vania Fausto Da T."]
[Result "0-1"]
[ECO "D30"]
[WhiteElo "1659"]
[BlackElo "1829"]
[Annotator "NA RC"]
[PlyCount "102"]
[EventDate "2024.03.07"]
[EventType "rapid"]
[EventCountry "GHA"]
[SourceTitle "playchess.com"]
[Source "ChessBase"]
[SourceQuality "1"]
[TimeControl "900+10"]

1. d4 {[%emt 0:00:09]} d5 {[%emt 0:00:02]} 2. Nf3 {[%emt 0:00:04]} e6 {[%emt 0:00:02]} 3. c4 {[%emt 0:00:16]} Nf6 {[%emt 0:00:05]} 4. Bg5 {[%emt 0:00:12]} h6 {[%emt 0:00:30]} 5. Bh4 {[%emt 0:00:04]} dxc4 {[%emt 0:00:20]} 6. Bxf6 {[%emt 0:00:50] D30: Queen's Gambit Declined: Systems without Nc3.} Qxf6 {[%emt 0:00:10]} 7. e4 {[%emt 0:00:02]} Bb4+ {[%emt 0:00:40]} 8. Nc3 {[%emt 0:00:02]} Bxc3+ {[%emt 0:00:39]} 9. bxc3 {[%emt 0:00:02]} b5 {[%emt 0:00:09]} 10. a4 {[%emt 0:00:09]} c6 {[%emt 0:00:10]} 11. Be2 {[%emt 0:00:36]} O-O {[%emt 0:00:07]} 12. O-O {[%emt 0:00:05]} Nd7 {[%emt 0:00:48]} 13. Qd2 {[%emt 0:00:58]} a6 {[%emt 0:00:26]} 14. d5 {[%emt 0:00:16]} exd5 {[%emt 0:00:38]} 15. exd5 {[%emt 0:00:09]} cxd5 {[%emt 0:01:00]} 16. Qxd5 {[%emt 0:00:25]} Nb6 {[%emt 0:00:40]} 17. Qe4 {[%emt 0:00:02]} Bf5 {[%emt 0:00:24]} 18. Qf4 {[%emt 0:00:33]} Nxa4 {[%emt 0:00:31]} 19. Bxc4 {[%emt 0:00:07]} Nxc3 {[%emt 0:00:39]} 20. Nd4 {[%emt 0:01:47]} bxc4 {[%emt 0:00:24]} 21. Kh1 {[%emt 0:03:20]} Bd3 {[%emt 0:00:36]} 22. Qxf6 {[%emt 0:00:20]} gxf6 {[%emt 0:00:02]} 23. Rfe1 {[%emt 0:00:23]} Nb5 {[%emt 0:00:08]} 24. Nc6 {[%emt 0:00:17]} Rfe8 {[%emt 0:00:41]} 25. Rxe8+ {[%emt 0:01:15]} Rxe8 {[%emt 0:00:02]} 26. h3 {[%emt 0:00:01]} Ra8 {[%emt 0:04:16]} 27. Nb4 {[%emt 0:00:52]} Bg6 {[%emt 0:00:14]} 28. Nd5 {[%emt 0:00:48]} c3 {[%emt 0:00:20]} 29. Nxf6+ {[%emt 0:00:20]} Kg7 {[%emt 0:00:02]} 30. Nd5 {[%emt 0:00:18]} c2 {[%emt 0:00:04]} 31. Nb4 {[%emt 0:00:20]} Rd8 {[%emt 0:00:34]} 32. Kh2 {[%emt 0:01:28]} Rd1 {[%emt 0:00:11]} 33. Nxc2 {[%emt 0:00:17]} Bxc2 {[%emt 0:00:47]} 34. Rxa6 {[%emt 0:00:03]} Rd2 {[%emt 0:00:07]} 35. f3 {[%emt 0:00:09]} Nd4 {[%emt 0:00:11]} 36. Kg3 {[%emt 0:00:14]} Ne2+ {[%emt 0:00:07]} 37. Kf2 {[%emt 0:00:34]} Nc3+ {[%emt 0:00:17]} 38. Kg3 {[%emt 0:00:10]} Nb5 {[%emt 0:00:27]} 39. Rb6 {[%emt 0:00:43]} Nc7 {[%emt 0:00:04]} 40. Rb4 {[%emt 0:00:24]} Nd5 {[%emt 0:00:14]} 41. Rg4+ {[%emt 0:00:29]} Kh7 {[%emt 0:00:02]} 42. Kh2 {[%emt 0:00:49]} Ne3 {[%emt 0:00:14]} 43. Rf4 {[%emt 0:00:25]} Rxg2+ {[%emt 0:00:15]} 44. Kh1 {[%emt 0:00:03]} Rg7 {[%emt 0:00:21]} 45. Rf6 {[%emt 0:00:18]} Nd5 {[%emt 0:00:18]} 46. Rd6 {[%emt 0:00:27]} Nf4 {[%emt 0:00:10]} 47. Rd2 {[%emt 0:00:32]} Bb3 {[%emt 0:00:03]} 48. h4 {[%emt 0:00:09]} Be6 {[%emt 0:00:05]} 49. Rd4 {[%emt 0:00:20]} Nd5 {[%emt 0:00:17]} 50. f4 {[%emt 0:00:30]} Rg4 {[%emt 0:00:07]} 51. h5 {[%emt 0:00:22]} Rxf4 {[%emt 0:00:04]} 0-1

[Event "13th All African Mixed Team Rapid-ch 202"]
[Site "Accra"]
[Date "2024.03.09"]
[Round "4.1"]
[White "Amin, Bassem"]
[Black "Mhango, Banele"]
[Result "1-0"]
[ECO "B51"]
[WhiteElo "2670"]
[BlackElo "2193"]
[Annotator "TA"]
[PlyCount "99"]
[EventDate "2024.03.07"]
[EventType "rapid"]
[EventCountry "GHA"]
[SourceTitle "playchess.com"]
[Source "ChessBase"]
[SourceQuality "1"]
[TimeControl "900+10"]

{[%evp 9,99,24,20,0,11,15,11,18,28,25,50,27,64,48,55,39,57,25,38,0,0,0,25,18,32,22,17,16,21,26,11,8,30,4,21,0,0,0,3,7,31,0,0,0,1,-18,114,112,100,65,115,108,98,44,114,58,264,84,89,83,72,12,11,0,23,8,10,0,0,0,81,95,95,77,204,204,204,204,204,204,204,204,204,204,247,192,843,818,1231,1069,2352,2001]} 1. e4 {[%emt 0:00:03]} c5 {[%emt 0:00:01]} 2. Nf3 {[%emt 0:00:02]} d6 {[%emt 0:00:01]} 3. Bb5+ {[%emt 0:00:04]} Nd7 {[%emt 0:00:01]} 4. c3 {[%emt 0:00:03]} Ngf6 {[%emt 0:00:08]} 5. Bd3 {[%emt 0:00:02]} e6 {[%emt 0:00:07][%cal Be7e6,Be6e5][%mdl 32]} 6. Bc2 {[%emt 0:00:19]} Be7 {[%emt 0:00:03]} 7. d4 {[%emt 0:00:03]} Qc7 {[%emt 0:00:01]} 8. O-O {[%emt 0:00:04] The position is equal.} O-O {[%emt 0:00:03]} 9. Re1 {[%emt 0:00:07]} Rd8 {[%emt 0:01:33]} 10. Qe2 {[%emt 0:01:28]} e5 {[%emt 0:01:02][%cal Ob7b5]} 11. a4 {[%emt 0:00:29]} Nf8 {[%emt 0:00:41]} 12. Na3 {[%emt 0:00:06][%cal Bb1a3,Ba3c4,Bc4e3,Be3f5][%mdl 32]} Ng6 {[%emt 0:00:16]} 13. h3 {[%emt 0:00:27]} Nh5 {[%emt 0:00:36]} 14. dxe5 {[%emt 0:01:29]} dxe5 {[%emt 0:00:15]} 15. Nc4 {[%emt 0:00:27]} Be6 {[%emt 0:00:49]} 16. g3 {[%emt 0:01:09]} h6 {[%emt 0:01:48][%cal Oh5f6]} 17. Nh2 {[%emt 0:00:31]} Nf6 {[%emt 0:00:24]} 18. h4 {[%emt 0:01:00]} Rac8 {[%emt 0:01:56]} 19. Ne3 {[%emt 0:00:42]} c4 {[%emt 0:00:44]} 20. Nf5 {[%emt 0:00:08]} Bf8 {[%emt 0:00:28]} 21. Be3 {[%emt 0:00:51]} Bc5 {[%emt 0:00:39]} 22. Qf3 {[%emt 0:00:37][%cal Of5h6]} Bxe3 {[%emt 0:00:08]} 23. Rxe3 {[%emt 0:00:04][%cal Of5h6]} Rd2 {[%emt 0:00:22]} 24. Re2 {[%emt 0:01:03]} Rcd8 {[%emt 0:00:27]} 25. Nf1 {[%emt 0:00:49]} Rxe2 {[%emt 0:00:02]} 26. Qxe2 {[%emt 0:00:01]} Nf8 {[%emt 0:00:33]} 27. Qe3 {[%emt 0:00:58]} Qb6 {[%emt 0:00:47]} (27... a6 $11) 28. Qxb6 {[%emt 0:00:04]} axb6 {[%emt 0:00:00]} 29. N5e3 {[%emt 0:00:11]} N8d7 {[%emt 0:00:15]} ({Black should try} 29... Ra8 $14) 30. Nd2 $16 {[%emt 0:00:26]} Rc8 {[%emt 0:00:18]} 31. f3 {[%emt 0:00:18]} ({Better is} 31. Rd1 $16) 31... Ne8 {[%emt 0:00:21]} (31... Kf8 $14) 32. Rd1 {[%emt 0:00:13]} (32. f4 $1 $16 {[%cal Rf4f5] aiming for f5.} f6 33. f5) 32... Nd6 {[%emt 0:01:02] [#]} (32... Ndf6 $1 $14) 33. Nb1 $2 {[%emt 0:00:14]} (33. f4 $1 $18 {[%cal Rf4f5] is the precise move to win.} f6 34. f5) 33... Rc6 {[%emt 0:00:04]} 34. Na3 {[%emt 0:00:03]} Kf8 {[%emt 0:00:13] [#]} 35. Kf2 {[%emt 0:00:14] White is more active.} (35. f4 $1 $16 {[%cal Rf4f5] And now f5 would win.} f6 36. f5) 35... Ke7 $11 {[%emt 0:00:03]} 36. f4 {[%emt 0:01:06]} f6 $1 {[%emt 0:00:13]} 37. Kf3 {[%emt 0:00:02]} Rc5 {[%emt 0:00:42]} 38. f5 {[%emt 0:00:31]} Bf7 {[%emt 0:00:01]} 39. g4 {[%emt 0:00:01]} Ra5 {[%emt 0:00:38] [#]} (39... Rc8 $11) 40. Rxd6 $1 $16 {[%emt 0:00:13]} Kxd6 {[%emt 0:00:02]} 41. Nexc4+ {[%emt 0:00:37]} Bxc4 {[%emt 0:00:01]} (41... Ke7 $16 {is a better defense.}) 42. Nxc4+ $18 {[%emt 0:00:01]} Ke7 {[%emt 0:00:07]} 43. Nxa5 {[%emt 0:00:02]} bxa5 {[%emt 0:00:01][%mdl 4096] Endgame. KB-KN} 44. Ke3 {[%emt 0:00:41]} Nb6 {[%emt 0:00:02]} 45. Kd3 {[%emt 0:00:06] Repels Nc4} Kd6 {[%emt 0:00:04]} 46. b4 {[%emt 0:00:01][%cal Bb2b4,Bb4a5][%mdl 32]} Kc6 {[%emt 0:00:10]} 47. Bb3 {[%emt 0:00:16]} Kd6 $2 {[%emt 0:00:05]} (47... axb4 48. cxb4 Nc8) 48. bxa5 {[%emt 0:00:15] White is clearly winning.} Nd7 {[%emt 0:00:02]} 49. Bd5 {[%emt 0:00:02]} Nc5+ {[%emt 0:00:03]} 50. Kc4 {[%emt 0:04:47] Weighted Error Value: White=0.19 (very precise) /Black=0.30.  Loses game:     	---       	Black=1      Missed win:     	White=1     	---        Mistake:       	White=3     	Black=6      Inaccurate:     	White=5     	Black=2      OK:         	White=12    	Black=15     Best:        	White=2     	Black=1      Strong:       	---       	Black=1      Brilliant:      	White=1     	---} 1-0

[Event "13th All African Mixed Team Rapid-ch 202"]
[Site "Accra"]
[Date "2024.03.09"]
[Round "4.2"]
[White "February, Jesse Nikki"]
[Black "Wafa, Shahenda"]
[Result "0-1"]
[ECO "A45"]
[WhiteElo "1920"]
[BlackElo "2083"]
[Annotator "RC"]
[PlyCount "128"]
[EventDate "2024.03.07"]
[EventType "rapid"]
[EventCountry "GHA"]
[SourceTitle "playchess.com"]
[Source "ChessBase"]
[SourceQuality "1"]
[TimeControl "900+10"]

1. d4 {[%emt 0:00:04]} Nf6 {[%emt 0:00:03]} 2. Bf4 {[%emt 0:00:03]} c5 {[%emt 0:00:26]} 3. dxc5 {[%emt 0:00:29]} Na6 {[%emt 0:00:47]} 4. e3 {[%emt 0:01:42]} Nxc5 {[%emt 0:00:12]} 5. Nc3 {[%emt 0:00:19]} g6 {[%emt 0:00:33]} 6. Nf3 {[%emt 0:00:36]} Bg7 {[%emt 0:00:13]} 7. h4 {[%emt 0:00:18]} d6 {[%emt 0:01:16]} 8. Bd3 {[%emt 0:01:13]} Nh5 {[%emt 0:01:49]} 9. Qd2 {[%emt 0:00:49]} Nxf4 {[%emt 0:00:55]} 10. exf4 {[%emt 0:00:02]} Nxd3+ {[%emt 0:00:45]} 11. Qxd3 {[%emt 0:03:54]} O-O {[%emt 0:02:07]} 12. O-O-O {[%emt 0:01:10]} Bf5 {[%emt 0:00:11]} 13. Qd2 {[%emt 0:00:13]} Qa5 {[%emt 0:00:43]} 14. Nd4 {[%emt 0:00:19]} Rfc8 {[%emt 0:01:38]} 15. f3 {[%emt 0:02:01]} Rc4 {[%emt 0:01:32]} 16. Nxf5 {[%emt 0:01:35]} Qxf5 {[%emt 0:00:17]} 17. Nd5 {[%emt 0:00:23]} Qd7 {[%emt 0:00:35]} 18. Kb1 {[%emt 0:00:43]} Rac8 {[%emt 0:01:04]} 19. Rc1 {[%emt 0:01:28]} Rd4 {[%emt 0:00:14]} 20. Qa5 {[%emt 0:00:20]} b6 {[%emt 0:00:39]} 21. Nxb6 {[%emt 0:00:05]} axb6 {[%emt 0:00:03]} 22. Qxb6 {[%emt 0:00:01]} Rd5 {[%emt 0:00:32]} 23. Qe3 {[%emt 0:00:24]} Rb5 {[%emt 0:00:08]} 24. c3 {[%emt 0:00:11]} Qb7 {[%emt 0:00:16]} 25. Qd2 {[%emt 0:00:11]} Ra8 {[%emt 0:00:51]} 26. h5 {[%emt 0:00:25]} Rba5 {[%emt 0:00:31]} 27. hxg6 {[%emt 0:00:13]} hxg6 {[%emt 0:00:09]} 28. b3 {[%emt 0:00:14]} Qb5 {[%emt 0:00:28]} 29. Rc2 {[%emt 0:00:07]} Rc8 {[%emt 0:00:38]} 30. Re1 {[%emt 0:00:13]} e6 {[%emt 0:00:12]} 31. c4 {[%emt 0:00:08]} Qa6 {[%emt 0:00:10]} 32. Qd3 {[%emt 0:00:07]} Rb8 {[%emt 0:00:08]} 33. Ree2 {[%emt 0:00:05]} Ra3 {[%emt 0:00:05]} 34. Kc1 {[%emt 0:00:24]} Qb6 {[%emt 0:00:10]} 35. Qe3 {[%emt 0:00:12]} Bd4 {[%emt 0:00:22]} 36. Qd3 {[%emt 0:00:07]} Bg7 {[%emt 0:00:13]} 37. Qe3 {[%emt 0:00:05]} Qxe3+ {[%emt 0:00:02]} 38. Rxe3 {[%emt 0:00:01]} Bh6 {[%emt 0:00:06]} 39. g3 {[%emt 0:00:03]} e5 {[%emt 0:00:03]} 40. Rd3 {[%emt 0:00:10]} exf4 {[%emt 0:00:07]} 41. g4 {[%emt 0:00:04]} Rba8 {[%emt 0:00:03]} 42. Kb1 {[%emt 0:00:12]} R8a6 {[%emt 0:00:07]} 43. Rd5 {[%emt 0:00:04]} Bg7 {[%emt 0:00:03]} 44. c5 {[%emt 0:00:20]} Rxb3+ {[%emt 0:00:07]} 45. Kc1 {[%emt 0:00:09]} Rb5 {[%emt 0:00:07]} 46. Rxd6 {[%emt 0:00:02]} Rxd6 {[%emt 0:00:09]} 47. cxd6 {[%emt 0:00:00]} Rd5 {[%emt 0:00:03]} 48. Rd2 {[%emt 0:00:44]} Rxd2 {[%emt 0:00:22]} 49. Kxd2 {[%emt 0:00:03]} Kf8 {[%emt 0:00:07]} 50. Kd3 {[%emt 0:00:10]} Be5 {[%emt 0:00:05]} 51. Ke4 {[%emt 0:00:05]} Bxd6 {[%emt 0:00:02]} 52. Kd5 {[%emt 0:00:01]} Ke7 {[%emt 0:00:05]} 53. a4 {[%emt 0:00:09]} Bb4 {[%emt 0:00:02]} 54. Ke4 {[%emt 0:00:03]} g5 {[%emt 0:00:05]} 55. Kf5 {[%emt 0:00:02]} f6 {[%emt 0:00:01]} 56. Kg6 {[%emt 0:00:09]} Ke6 {[%emt 0:00:03]} 57. Kh5 {[%emt 0:00:11]} Ke5 {[%emt 0:00:07]} 58. Kg6 {[%emt 0:00:01]} Bc3 {[%emt 0:00:06]} 59. Kh5 {[%emt 0:00:05]} Kd4 {[%emt 0:00:04]} 60. Kg6 {[%emt 0:00:01]} Ke3 {[%emt 0:00:02]} 61. a5 {[%emt 0:00:03]} Bxa5 {[%emt 0:00:08]} 62. Kxf6 {[%emt 0:00:01]} Bd8+ {[%emt 0:00:01]} 63. Ke6 {[%emt 0:00:04]} Kxf3 {[%emt 0:00:02]} 64. Kf5 {[%emt 0:00:01]} Kg3 {[%emt 0:00:04]} 0-1

[Event "13th All African Mixed Team Rapid-ch 202"]
[Site "Accra"]
[Date "2024.03.09"]
[Round "4.3"]
[White "Silva, David"]
[Black "Mwali, Chitumbo"]
[Result "1-0"]
[ECO "C55"]
[WhiteElo "2358"]
[BlackElo "2340"]
[Annotator "TA"]
[PlyCount "103"]
[EventDate "2024.03.07"]
[EventType "rapid"]
[EventCountry "GHA"]
[SourceTitle "playchess.com"]
[Source "ChessBase"]
[SourceQuality "1"]
[TimeControl "900+10"]

{[%evp 24,103,33,25,32,39,47,53,50,36,72,56,54,41,72,76,78,77,104,87,154,84,97,78,114,116,117,94,174,164,164,170,218,207,334,203,202,-237,-213,-298,-318,-315,-311,-335,-327,-325,-320,-466,-460,-502,-498,-569,-560,-529,-557,-680,-662,-679,-585,-731,-716,-1044,-844,-945,-931,-1014,-654,-2112,-2106,-29970,-29970,-29970,-29964,-29986,-29987,-29990,-29988,-29988,-29989,-29993,-29994,-29994]} 1. e4 {[%emt 0:00:15]} e5 {[%emt 0:00:01]} 2. Nf3 {[%emt 0:00:01]} Nc6 {[%emt 0:00:01]} 3. Bc4 {[%emt 0:00:41]} Nf6 {[%emt 0:00:05]} 4. d3 {[%emt 0:00:05]} Be7 {[%emt 0:00:05]} 5. O-O {[%emt 0:00:04]} O-O {[%emt 0:00:02]} 6. Nc3 {[%emt 0:00:06]} d6 {[%emt 0:00:03]} 7. a3 {[%emt 0:00:00] 7.a3 is the recent fashion.} a6 {[%emt 0:00:33]} 8. h3 {[%emt 0:00:10]} b5 {[%emt 0:00:00] C55: Two Knights: 4 d3, 4 d4 exd4 5 e5 and Max Lange Attack.} 9. Ba2 {[%emt 0:00:02]} Bb7 {[%emt 0:00:03]} 10. Nd5 {[%emt 0:00:09]} Nxd5 {[%emt 0:00:19]} 11. Bxd5 {[%emt 0:00:04]} Na5 {[%emt 0:00:28]} 12. Re1 $146 {[%emt 0:00:46]} ({Predecessor:} 12. Ba2 c5 13. b4 Nc6 14. c3 a5 15. Bd5 axb4 16. cxb4 cxb4 17. Qb3 bxa3 18. Qxb5 {1-0 Rocek,V (1127)-Raines,D (1184) RF-2016-0-00289}) 12... c6 {[%emt 0:00:15]} 13. Ba2 {[%emt 0:00:02]} c5 {[%emt 0:00:01]} 14. b4 {[%emt 0:00:17]} cxb4 {[%emt 0:00:25]} 15. axb4 {[%emt 0:00:02]} Nc6 {[%emt 0:00:00]} 16. Bd2 {[%emt 0:00:10]} Kh8 {[%emt 0:00:22]} 17. Bd5 {[%emt 0:00:01]} Qd7 {[%emt 0:00:52]} 18. c4 {[%emt 0:00:02]} Nd8 {[%emt 0:02:49]} 19. Qb3 {[%emt 0:00:05]} Ne6 {[%emt 0:02:34]} 20. Rec1 {[%emt 0:01:04]} bxc4 {[%emt 0:00:47]} 21. dxc4 {[%emt 0:00:12]} f5 {[%emt 0:04:39]} (21... Bf6 $142) 22. Qd3 {[%emt 0:06:35]} ({White should play} 22. exf5 Rxf5 23. c5 Bxd5 24. Qxd5) 22... fxe4 {[%emt 0:00:55]} 23. Bxe4 {[%emt 0:00:14]} Bxe4 {[%emt 0:01:24]} 24. Qxe4 {[%emt 0:00:03]} Bf6 {[%emt 0:00:12]} 25. Ra2 {[%emt 0:00:11]} Nd4 {[%emt 0:00:17] [#]} (25... Rfe8 $16 26. b5 Nc5) 26. Nxd4 $1 $18 {[%emt 0:00:06]} exd4 {[%emt 0:02:18]} 27. Qd5 {[%emt 0:00:12]} Rae8 {[%emt 0:00:00]} (27... Qf7 $142 28. Qxf7 (28. Qxd6 Rad8 $16) 28... Rxf7) 28. Rxa6 $18 {[%emt 0:00:05]} Re2 {[%emt 0:00:00]} (28... Qe7 $142 29. Ra2 (29. Qxd6 Qe2 $15) 29... Bh4) 29. Ra8 {[%emt 0:01:47]} ({Not} 29. Rxd6 Qe8 $16) 29... Bd8 {[%emt 0:00:00]} 30. Bg5 $4 {[%emt 0:00:11][%mdl 8192]} (30. Qxd4 $18 Rfxf2 31. Qxf2 Rxf2 32. Kxf2) 30... Re5 $19 {[%emt 0:00:00]} 31. Qf3 {[%emt 0:01:44]} ({Wrong is} 31. Rxd8 $2 Rxd8 32. Qxd4 Rxg5 $19) 31... Rxf3 {[%emt 0:00:00]} 32. Rxd8+ {[%emt 0:00:02]} Qxd8 {[%emt 0:00:00]} 33. Bxd8 {[%emt 0:00:02]} Rc3 {[%emt 0:00:00]} 34. Rd1 {[%emt 0:00:08]} Rxc4 {[%emt 0:00:00]} 35. b5 {[%emt 0:00:06]} (35. Bb6 {was necessary.} Rd5 (35... Rxb4 $2 36. Bxd4 Reb5 37. Kh2 $19) 36. b5) 35... Rxb5 $19 {[%emt 0:00:00]} 36. Bh4 {[%emt 0:01:12]} d3 {[%emt 0:00:00]} 37. Bg3 {[%emt 0:00:03]} Rd5 {[%emt 0:00:00]} 38. Kf1 {[%emt 0:00:08]} h5 {[%emt 0:00:00]} 39. h4 {[%emt 0:00:09]} Kh7 {[%emt 0:00:14]} 40. Ke1 {[%emt 0:00:37]} Rc2 {[%emt 0:00:16]} 41. Kf1 {[%emt 0:00:07]} Kg6 {[%emt 0:00:03]} 42. Ke1 {[%emt 0:00:04]} Kf5 {[%emt 0:00:03]} 43. Kf1 {[%emt 0:00:02]} g5 {[%emt 0:00:10]} 44. f3 {[%emt 0:00:08]} gxh4 {[%emt 0:00:08]} 45. Bxh4 {[%emt 0:00:02]} Kf4 {[%emt 0:00:09]} 46. Bf2 {[%emt 0:00:02]} h4 {[%emt 0:00:06]} 47. Bxh4 {[%emt 0:00:08]} Rh5 {[%emt 0:00:21]} 48. g3+ {[%emt 0:00:20]} Ke3 {[%emt 0:00:06]} (48... Kxf3 49. Rxd3+ Kg4 50. Rd4+ Kh3 51. Ke1 $19) 49. Re1+ {[%emt 0:00:04]} Re2 {[%emt 0:00:01]} 50. Ra1 {[%emt 0:00:03]} Kxf3 {[%emt 0:00:15]} 51. Ra6 {[%emt 0:00:12]} Rc5 {[%emt 0:02:18]} 52. Ra1 {[%emt 0:04:45]} 1-0

[Event "13th All African Mixed Team Rapid-ch 202"]
[Site "Accra"]
[Date "2024.03.09"]
[Round "4.4"]
[White "Mbatha, Constance"]
[Black "Junior, Ednasia"]
[Result "0-1"]
[ECO "B40"]
[WhiteElo "1799"]
[BlackElo "1915"]
[Annotator "RC"]
[PlyCount "78"]
[EventDate "2024.03.07"]
[EventType "rapid"]
[EventCountry "GHA"]
[SourceTitle "playchess.com"]
[Source "ChessBase"]
[SourceQuality "1"]
[TimeControl "900+10"]

1. e4 {[%emt 0:00:10]} c5 {[%emt 0:00:02]} 2. Nf3 {[%emt 0:00:11]} e6 {[%emt 0:00:01]} 3. d4 {[%emt 0:00:03]} cxd4 {[%emt 0:00:02]} 4. Nxd4 {[%emt 0:00:02]} Nc6 {[%emt 0:00:02]} 5. Nxc6 {[%emt 0:00:22]} bxc6 {[%emt 0:00:02]} 6. Bd3 {[%emt 0:00:01]} Nf6 {[%emt 0:00:30]} 7. O-O {[%emt 0:00:02]} Qc7 {[%emt 0:00:09]} 8. h3 {[%emt 0:00:04]} Be7 {[%emt 0:00:06]} 9. Nc3 {[%emt 0:00:10]} O-O {[%emt 0:00:09]} 10. f4 {[%emt 0:00:25]} d6 {[%emt 0:00:04]} 11. Be3 {[%emt 0:00:18]} Bb7 {[%emt 0:00:40]} 12. Qe2 {[%emt 0:00:09]} Rfd8 {[%emt 0:00:44]} 13. Bf2 {[%emt 0:00:36]} c5 {[%emt 0:02:06]} 14. Rae1 {[%emt 0:00:25]} a6 {[%emt 0:00:29]} 15. Bh4 {[%emt 0:00:16]} Qb6 {[%emt 0:01:01]} 16. Kh2 {[%emt 0:01:17]} Rd7 {[%emt 0:01:05]} 17. e5 {[%emt 0:02:05]} Ne8 {[%emt 0:01:58]} 18. Bxh7+ {[%emt 0:02:31]} Kxh7 {[%emt 0:00:28]} 19. Qh5+ {[%emt 0:00:01]} Kg8 {[%emt 0:00:07]} 20. Bxe7 {[%emt 0:00:10]} Rxe7 {[%emt 0:00:02]} 21. f5 {[%emt 0:00:02]} exf5 {[%emt 0:00:55]} 22. Qxf5 {[%emt 0:01:06]} dxe5 {[%emt 0:01:04]} 23. Qg5 {[%emt 0:01:14]} Re6 {[%emt 0:01:53]} 24. Rf2 {[%emt 0:00:45]} Qc7 {[%emt 0:01:39]} 25. Ne4 {[%emt 0:01:41]} Rg6 {[%emt 0:02:07]} 26. Qe3 {[%emt 0:00:46]} Rc8 {[%emt 0:00:29]} 27. Ref1 {[%emt 0:00:31]} Bxe4 {[%emt 0:00:07]} 28. Qxe4 {[%emt 0:00:06]} Nf6 {[%emt 0:00:10]} 29. Qe2 {[%emt 0:00:59]} e4+ {[%emt 0:00:24]} 30. Kg1 {[%emt 0:00:01]} Qg3 {[%emt 0:00:13]} 31. b3 {[%emt 0:00:38]} Rc6 {[%emt 0:00:29]} 32. c4 {[%emt 0:00:15]} Qxh3 {[%emt 0:00:20]} 33. Rf4 {[%emt 0:00:39]} Re6 {[%emt 0:00:16]} 34. Rxf6 {[%emt 0:01:55]} Rexf6 {[%emt 0:00:07]} 35. Qxe4 {[%emt 0:00:46]} Rxf1+ {[%emt 0:00:12]} 36. Kxf1 {[%emt 0:00:01]} Qe6 {[%emt 0:00:18]} 37. Qb7 {[%emt 0:00:37]} Rf6+ {[%emt 0:00:14]} 38. Kg1 {[%emt 0:00:00]} Qe1+ {[%emt 0:00:04]} 39. Kh2 {[%emt 0:00:00]} Rh6# {[%emt 0:00:02]} 0-1